[Event "Live Chess"]
[Site "Chess.com"]
[Date "2023.05.21"]
[Round "-"]
[White "Pandreq"]
[Black "chessfiction"]
[Result "0-1"]
[WhiteElo "1235"]
[BlackElo "2336"]
[TimeControl "300"]
[EndTime "2:37:39 PDT"]
[Termination "chessfiction won by resignation"]

1. d4 {[%clk 0:04:56.9]} 1... d5 {[%clk 0:04:58.8]} 2. c4 {[%clk 0:04:56]} 2...
e5 {[%clk 0:04:57.9]} 3. cxd5 {[%clk 0:04:54.8]} 3... e4 {[%clk 0:04:56.8]} 4.
Nc3 {[%clk 0:04:52.6]} 4... Nf6 {[%clk 0:04:56.1]} 5. Bg5 {[%clk 0:04:50.2]}
5... Bd6 {[%clk 0:04:55.2]} 6. Bxf6 {[%clk 0:04:45.9]} 6... Qxf6 {[%clk
0:04:55.1]} 7. Nxe4 {[%clk 0:04:45.1]} 7... Bb4+ {[%clk 0:04:54]} 8. Nd2 {[%clk
0:04:39.9]} 8... Qxd4 {[%clk 0:04:52.2]} 9. Nf3 {[%clk 0:04:31.7]} 9... Qxb2
{[%clk 0:04:46.6]} 10. Rb1 {[%clk 0:04:30.2]} 10... Qa3 {[%clk 0:04:44]} 11. Qc2
{[%clk 0:04:11.5]} 11... Na6 {[%clk 0:04:35.5]} 12. e4 {[%clk 0:04:09.7]} 12...
O-O {[%clk 0:04:32.2]} 13. Bc4 {[%clk 0:04:00.1]} 13... Bg4 {[%clk 0:04:24.5]}
14. O-O {[%clk 0:03:53.2]} 14... Rfe8 {[%clk 0:04:11.5]} 15. Rb3 {[%clk
0:03:42.3]} 15... Qa5 {[%clk 0:04:10.1]} 16. Rb2 {[%clk 0:03:22.1]} 16... Nc5
{[%clk 0:04:03.9]} 17. Nb3 {[%clk 0:03:15.5]} 17... Nxb3 {[%clk 0:04:01.9]} 18.
Qxb3 {[%clk 0:03:10.5]} 18... Bd6 {[%clk 0:03:57.5]} 19. e5 {[%clk 0:02:41.5]}
19... Bxf3 {[%clk 0:03:32.7]} 20. exd6 {[%clk 0:02:32.7]} 20... Be4 {[%clk
0:03:28.3]} 21. dxc7 {[%clk 0:02:22.9]} 21... Qxc7 {[%clk 0:03:25.8]} 22. Qxb7
{[%clk 0:02:11.1]} 22... Qxc4 {[%clk 0:03:19.7]} 23. Rfb1 {[%clk 0:01:59.1]}
23... Bxb1 {[%clk 0:03:16.9]} 24. Rxb1 {[%clk 0:01:55.7]} 24... Qe4 {[%clk
0:03:12.4]} 25. h3 {[%clk 0:01:52.9]} 25... h5 {[%clk 0:03:09.4]} 26. d6 {[%clk
0:01:49.1]} 26... Qxb7 {[%clk 0:03:08.1]} 27. Rxb7 {[%clk 0:01:47.2]} 27... Red8
{[%clk 0:03:08]} 28. d7 {[%clk 0:01:44.6]} 28... Kf8 {[%clk 0:03:06.9]} 29. a4
{[%clk 0:01:41.4]} 29... Ke7 {[%clk 0:03:05.9]} 30. a5 {[%clk 0:01:39.3]} 30...
g6 {[%clk 0:03:04.9]} 31. a6 {[%clk 0:01:37.9]} 31... Rxd7 {[%clk 0:03:04.4]}
32. Rxd7+ {[%clk 0:01:31.7]} 32... Kxd7 {[%clk 0:03:02.9]} 0-1

[Event "Live Chess"]
[Site "Chess.com"]
[Date "2023.05.21"]
[Round "-"]
[White "TheSmoulderingMaster"]
[Black "Doge_Dandolo"]
[Result "1-0"]
[WhiteElo "1721"]
[BlackElo "1857"]
[TimeControl "300"]
[EndTime "2:37:58 PDT"]
[Termination "TheSmoulderingMaster won by resignation"]

1. e4 {[%clk 0:04:57.9]} 1... c6 {[%clk 0:04:58.8]} 2. d4 {[%clk 0:04:56.7]}
2... d5 {[%clk 0:04:58.3]} 3. Nc3 {[%clk 0:04:55.8]} 3... dxe4 {[%clk
0:04:57.2]} 4. Nxe4 {[%clk 0:04:55.2]} 4... Bf5 {[%clk 0:04:56.6]} 5. Ng3 {[%clk
0:04:54.2]} 5... Bg6 {[%clk 0:04:55.3]} 6. Nh3 {[%clk 0:04:53.3]} 6... Nf6
{[%clk 0:04:51.5]} 7. Nf4 {[%clk 0:04:51.4]} 7... e5 {[%clk 0:04:50.2]} 8. Nxg6
{[%clk 0:04:50.3]} 8... hxg6 {[%clk 0:04:48.1]} 9. dxe5 {[%clk 0:04:49.3]} 9...
Qa5+ {[%clk 0:04:47]} 10. Bd2 {[%clk 0:04:46.1]} 10... Qxe5+ {[%clk 0:04:45.9]}
11. Be2 {[%clk 0:04:45.7]} 11... Nbd7 {[%clk 0:04:43.9]} 12. O-O {[%clk
0:04:44.7]} 12... Bd6 {[%clk 0:04:42.6]} 13. Re1 {[%clk 0:04:44]} 13... O-O-O
{[%clk 0:04:29.2]} 14. Bc4 {[%clk 0:04:36.4]} 14... Qc5 {[%clk 0:04:20.9]} 15.
Bxf7 {[%clk 0:04:34.7]} 15... Ne5 {[%clk 0:04:08.2]} 16. Bb3 {[%clk 0:04:30.4]}
16... Neg4 {[%clk 0:04:05.8]} 17. Be6+ {[%clk 0:04:23.8]} 17... Kb8 {[%clk
0:04:00.3]} 18. Bxg4 {[%clk 0:04:22.8]} 18... Nxg4 {[%clk 0:03:55.8]} 19. Qxg4
{[%clk 0:04:21.8]} 19... Rdf8 {[%clk 0:03:55.2]} 20. Be3 {[%clk 0:04:00.3]}
20... Qxc2 {[%clk 0:03:45]} 21. Qd4 {[%clk 0:03:50.3]} 1-0

[Event "Live Chess"]
[Site "Chess.com"]
[Date "2023.05.21"]
[Round "-"]
[White "Pablo_dmp"]
[Black "FailsGambits"]
[Result "1-0"]
[WhiteElo "1856"]
[BlackElo "1337"]
[TimeControl "300"]
[EndTime "2:38:01 PDT"]
[Termination "Pablo_dmp won on time"]

1. e3 {[%clk 0:04:58.6]} 1... d5 {[%clk 0:04:58.7]} 2. Nf3 {[%clk 0:04:54.4]}
2... c5 {[%clk 0:04:53.1]} 3. b3 {[%clk 0:04:52.9]} 3... Nf6 {[%clk 0:04:46.5]}
4. Bb2 {[%clk 0:04:49.1]} 4... g6 {[%clk 0:04:45.6]} 5. c4 {[%clk 0:04:45.9]}
5... Bg7 {[%clk 0:04:39.4]} 6. cxd5 {[%clk 0:04:43.5]} 6... Qxd5 {[%clk
0:04:30.4]} 7. Nc3 {[%clk 0:04:43.4]} 7... Qd8 {[%clk 0:04:22.4]} 8. Bc4 {[%clk
0:04:25.3]} 8... O-O {[%clk 0:04:18.8]} 9. O-O {[%clk 0:04:22]} 9... Nc6 {[%clk
0:04:12.1]} 10. Ne2 {[%clk 0:04:11.5]} 10... Bg4 {[%clk 0:04:08.3]} 11. Ng3
{[%clk 0:04:04.7]} 11... Bxf3 {[%clk 0:03:51.4]} 12. Qxf3 {[%clk 0:04:02.4]}
12... Qxd2 {[%clk 0:03:46.2]} 13. Bxf6 {[%clk 0:03:28.9]} 13... Bxf6 {[%clk
0:03:38.6]} 14. Ne4 {[%clk 0:03:27.2]} 14... Ne5 {[%clk 0:03:10]} 15. Nxd2
{[%clk 0:03:24.9]} 15... Nxf3+ {[%clk 0:03:06.2]} 16. Nxf3 {[%clk 0:03:24.8]}
16... Bxa1 {[%clk 0:03:05.4]} 17. Rxa1 {[%clk 0:03:24.7]} 17... a6 {[%clk
0:02:48.4]} 18. a4 {[%clk 0:03:09.9]} 18... b5 {[%clk 0:02:37.2]} 19. axb5
{[%clk 0:03:09.8]} 19... axb5 {[%clk 0:02:37.1]} 20. Rxa8 {[%clk 0:03:05.4]}
20... Rxa8 {[%clk 0:02:35.7]} 21. Bxb5 {[%clk 0:03:02]} 21... Ra1+ {[%clk
0:02:32.3]} 22. Bf1 {[%clk 0:03:01.9]} 22... Rb1 {[%clk 0:02:30.8]} 23. Nd2
{[%clk 0:02:52.1]} 23... Rb2 {[%clk 0:02:23.8]} 24. Ne4 {[%clk 0:02:48.8]} 24...
Rxb3 {[%clk 0:01:54.8]} 25. Nxc5 {[%clk 0:02:46.7]} 25... Rb1 {[%clk 0:01:44.3]}
26. g3 {[%clk 0:02:41.1]} 26... Kg7 {[%clk 0:01:36.6]} 27. Kg2 {[%clk
0:02:39.8]} 27... h5 {[%clk 0:01:12.8]} 28. Bd3 {[%clk 0:02:32]} 28... Rc1
{[%clk 0:01:00.2]} 29. Ne4 {[%clk 0:02:28]} 29... f5 {[%clk 0:00:45.5]} 30. Ng5
{[%clk 0:02:26.5]} 30... Kf6 {[%clk 0:00:36.6]} 31. Nf3 {[%clk 0:02:22]} 31...
Rc3 {[%clk 0:00:34.5]} 32. Be2 {[%clk 0:02:12.2]} 32... e5 {[%clk 0:00:32.1]}
33. h4 {[%clk 0:02:09.5]} 33... Rc2 {[%clk 0:00:26.7]} 34. Bd1 {[%clk
0:02:04.7]} 34... Ra2 {[%clk 0:00:24.9]} 35. Bb3 {[%clk 0:02:03.2]} 35... Ra3
{[%clk 0:00:23.3]} 36. Bd5 {[%clk 0:01:56.8]} 36... Ra5 {[%clk 0:00:20.9]} 37.
Bc4 {[%clk 0:01:52.5]} 37... Ra4 {[%clk 0:00:20]} 38. Bb5 {[%clk 0:01:50.3]}
38... Rb4 {[%clk 0:00:19.1]} 39. Bf1 {[%clk 0:01:47.5]} 39... Rb1 {[%clk
0:00:17.9]} 40. Ng5 {[%clk 0:01:46.5]} 40... Rb8 {[%clk 0:00:16.1]} 41. f4
{[%clk 0:01:41.8]} 41... exf4 {[%clk 0:00:14.9]} 42. gxf4 {[%clk 0:01:39.2]}
42... Rb2+ {[%clk 0:00:14.2]} 43. Kf3 {[%clk 0:01:37.9]} 43... Rh2 {[%clk
0:00:12.7]} 44. Kg3 {[%clk 0:01:34.3]} 44... Ra2 {[%clk 0:00:10.6]} 45. Bc4
{[%clk 0:01:32.5]} 45... Ra4 {[%clk 0:00:09.3]} 46. Bb5 {[%clk 0:01:30]} 46...
Ra3 {[%clk 0:00:08.8]} 47. Kf3 {[%clk 0:01:27.6]} 47... Rb3 {[%clk 0:00:08.1]}
48. Bc4 {[%clk 0:01:24.2]} 48... Rb1 {[%clk 0:00:07.8]} 49. Nh7+ {[%clk
0:01:20]} 49... Kg7 {[%clk 0:00:06.8]} 50. Ng5 {[%clk 0:01:18.3]} 50... Kf6
{[%clk 0:00:06]} 51. e4 {[%clk 0:01:15.3]} 51... fxe4+ {[%clk 0:00:05]} 52. Kxe4
{[%clk 0:01:15.2]} 52... Rb4 {[%clk 0:00:04.3]} 53. Kd3 {[%clk 0:01:09.9]} 53...
Kf5 {[%clk 0:00:04.2]} 54. Be6+ {[%clk 0:01:07.9]} 54... Kxf4 {[%clk 0:00:03.3]}
55. Bf7 {[%clk 0:01:06.2]} 55... Kg3 {[%clk 0:00:03.2]} 56. Bxg6 {[%clk
0:01:05]} 56... Kxh4 {[%clk 0:00:03.1]} 57. Nf7 {[%clk 0:01:01.4]} 57... Rb5
{[%clk 0:00:03]} 58. Kc3 {[%clk 0:00:55.1]} 58... Rc5+ {[%clk 0:00:02.4]} 59.
Kb4 {[%clk 0:00:52.5]} 59... Rc7 {[%clk 0:00:02.3]} 60. Ne5 {[%clk 0:00:50.3]}
60... Re7 {[%clk 0:00:01.3]} 61. Nd3 {[%clk 0:00:48.2]} 61... Re3 {[%clk
0:00:00.3]} 62. Nf2 {[%clk 0:00:45.7]} 1-0

[Event "Live Chess"]
[Site "Chess.com"]
[Date "2023.05.21"]
[Round "-"]
[White "WelshTiger"]
[Black "PrinceCharming_1"]
[Result "1-0"]
[WhiteElo "2338"]
[BlackElo "1623"]
[TimeControl "300"]
[EndTime "2:38:15 PDT"]
[Termination "WelshTiger won by resignation"]

1. e4 {[%clk 0:04:57.5]} 1... e5 {[%clk 0:04:59.1]} 2. Nf3 {[%clk 0:04:56.4]}
2... Nc6 {[%clk 0:04:58.7]} 3. d4 {[%clk 0:04:50.5]} 3... exd4 {[%clk
0:04:57.6]} 4. Bc4 {[%clk 0:04:49.7]} 4... Nf6 {[%clk 0:04:56.2]} 5. e5 {[%clk
0:04:48.3]} 5... Ne4 {[%clk 0:04:54.9]} 6. Bd5 {[%clk 0:04:46]} 6... Nc5 {[%clk
0:04:53.2]} 7. O-O {[%clk 0:04:43.3]} 7... Be7 {[%clk 0:04:51.6]} 8. Re1 {[%clk
0:04:39.1]} 8... Ne6 {[%clk 0:04:50]} 9. c3 {[%clk 0:04:31.6]} 9... dxc3 {[%clk
0:04:48.8]} 10. Nxc3 {[%clk 0:04:30.8]} 10... O-O {[%clk 0:04:48.4]} 11. Be3
{[%clk 0:04:25.9]} 11... d6 {[%clk 0:04:47.8]} 12. exd6 {[%clk 0:04:22.9]} 12...
Bxd6 {[%clk 0:04:47.7]} 13. Bxc6 {[%clk 0:04:20.5]} 13... bxc6 {[%clk
0:04:46.5]} 14. Ne4 {[%clk 0:04:19.8]} 14... Be7 {[%clk 0:04:43.8]} 15. Qc2
{[%clk 0:04:18.4]} 15... Ba6 {[%clk 0:04:34.7]} 16. Red1 {[%clk 0:04:15.6]}
16... Qc8 {[%clk 0:04:28.9]} 17. b3 {[%clk 0:04:14.6]} 17... f5 {[%clk
0:04:21.2]} 18. Nc5 {[%clk 0:04:08.3]} 18... Nxc5 {[%clk 0:04:19.7]} 19. Bxc5
{[%clk 0:04:07.6]} 19... Bxc5 {[%clk 0:04:12.4]} 20. Qxc5 {[%clk 0:04:06.7]}
20... Be2 {[%clk 0:04:10.4]} 21. Rd4 {[%clk 0:03:40.3]} 21... Bxf3 {[%clk
0:04:06.5]} 22. gxf3 {[%clk 0:03:40.2]} 22... Qe6 {[%clk 0:03:58.4]} 23. Rc1
{[%clk 0:03:37.4]} 23... Qg6+ {[%clk 0:03:47.5]} 24. Kf1 {[%clk 0:03:34.9]}
24... Rf6 {[%clk 0:03:24.9]} 25. Qe5 {[%clk 0:03:16.6]} 25... Qh5 {[%clk
0:03:13]} 26. Qg3 {[%clk 0:03:13]} 26... Qh6 {[%clk 0:03:07.3]} 27. Rcd1 {[%clk
0:03:02.4]} 27... Rg6 {[%clk 0:03:00.7]} 28. Rd8+ {[%clk 0:02:55.3]} 28... Rxd8
{[%clk 0:02:59]} 29. Rxd8+ {[%clk 0:02:53.8]} 29... Kf7 {[%clk 0:02:58.7]} 30.
Qxc7+ {[%clk 0:02:52.9]} 30... Kf6 {[%clk 0:02:57.4]} 31. Rd6+ {[%clk
0:02:42.9]} 31... Kg5 {[%clk 0:02:56.3]} 32. Rxg6+ {[%clk 0:02:37.2]} 32... hxg6
{[%clk 0:02:56.2]} 33. Qg3+ {[%clk 0:02:29.8]} 33... Kf6 {[%clk 0:02:55]} 34. f4
{[%clk 0:02:29.3]} 34... Qh5 {[%clk 0:02:53]} 35. Ke1 {[%clk 0:02:26.6]} 35...
g5 {[%clk 0:02:48.7]} 36. fxg5+ {[%clk 0:02:25.2]} 36... Qxg5 {[%clk 0:02:48]}
37. Qxg5+ {[%clk 0:02:24.2]} 37... Kxg5 {[%clk 0:02:47.9]} 38. Ke2 {[%clk
0:02:21.2]} 38... Kg4 {[%clk 0:02:46.7]} 39. Kf1 {[%clk 0:02:08.8]} 39... Kh3
{[%clk 0:02:45.5]} 40. Kg1 {[%clk 0:02:08.1]} 40... g5 {[%clk 0:02:45.2]} 41. f3
{[%clk 0:02:07.6]} 41... g4 {[%clk 0:02:43.9]} 42. fxg4 {[%clk 0:02:05.6]} 42...
fxg4 {[%clk 0:02:43.8]} 43. Kh1 {[%clk 0:02:04.8]} 43... g3 {[%clk 0:02:42]} 44.
hxg3 {[%clk 0:02:03.7]} 44... Kxg3 {[%clk 0:02:41.9]} 45. Kg1 {[%clk 0:02:03.3]}
45... Kf3 {[%clk 0:02:41.8]} 46. Kf1 {[%clk 0:02:02.9]} 46... Ke3 {[%clk
0:02:41.7]} 47. Ke1 {[%clk 0:02:02.5]} 47... Kd3 {[%clk 0:02:41.5]} 48. Kd1
{[%clk 0:02:02.1]} 48... Kc3 {[%clk 0:02:38.7]} 49. Kc1 {[%clk 0:02:01.6]} 49...
Kb4 {[%clk 0:02:37.9]} 50. Kb2 {[%clk 0:01:59.3]} 50... a5 {[%clk 0:02:35.5]}
51. a3+ {[%clk 0:01:58.8]} 51... Kb5 {[%clk 0:02:34.8]} 52. Kc3 {[%clk
0:01:58.4]} 52... c5 {[%clk 0:02:34.4]} 53. a4+ {[%clk 0:01:53.1]} 53... Kc6
{[%clk 0:02:29.7]} 54. Kc4 {[%clk 0:01:53]} 54... Kb6 {[%clk 0:02:29]} 55. Kd5
{[%clk 0:01:52.2]} 55... c4 {[%clk 0:02:22.8]} 56. bxc4 {[%clk 0:01:51.1]} 56...
Kc7 {[%clk 0:02:21.2]} 57. Kc5 {[%clk 0:01:50.3]} 57... Kb7 {[%clk 0:02:20.9]}
58. Kd6 {[%clk 0:01:49.5]} 58... Ka6 {[%clk 0:02:20.8]} 59. c5 {[%clk
0:01:48.2]} 59... Kb7 {[%clk 0:02:20.7]} 60. Kd7 {[%clk 0:01:46.7]} 60... Kb8
{[%clk 0:02:17.6]} 61. c6 {[%clk 0:01:45.8]} 61... Ka7 {[%clk 0:02:16.2]} 62. c7
{[%clk 0:01:44]} 62... Ka8 {[%clk 0:02:15.7]} 63. c8=Q+ {[%clk 0:01:42.6]} 63...
Ka7 {[%clk 0:02:15.6]} 64. Qc5+ {[%clk 0:01:38.8]} 64... Kb7 {[%clk 0:02:14]}
65. Qb5+ {[%clk 0:01:38.1]} 65... Ka7 {[%clk 0:02:13.3]} 66. Kc7 {[%clk
0:01:36.4]} 1-0

[Event "Live Chess"]
[Site "Chess.com"]
[Date "2023.05.21"]
[Round "-"]
[White "raminguy"]
[Black "f4nomore"]
[Result "0-1"]
[WhiteElo "1957"]
[BlackElo "1409"]
[TimeControl "300"]
[EndTime "2:38:18 PDT"]
[Termination "f4nomore won by resignation"]

1. d4 {[%clk 0:04:58.1]} 1... g6 {[%clk 0:04:56.4]} 2. Nc3 {[%clk 0:04:57.7]}
2... Bg7 {[%clk 0:04:55.4]} 3. Bf4 {[%clk 0:04:57.5]} 3... d6 {[%clk 0:04:54.1]}
4. Qd2 {[%clk 0:04:57.2]} 4... Nd7 {[%clk 0:04:49.9]} 5. Nf3 {[%clk 0:04:55.7]}
5... b6 {[%clk 0:04:48.7]} 6. O-O-O {[%clk 0:04:54.5]} 6... Bb7 {[%clk
0:04:47.1]} 7. e4 {[%clk 0:04:51.7]} 7... Rc8 {[%clk 0:04:45.1]} 8. h4 {[%clk
0:04:47.4]} 8... h5 {[%clk 0:04:42.4]} 9. Bd3 {[%clk 0:04:39.5]} 9... c5 {[%clk
0:04:40.9]} 10. dxc5 {[%clk 0:04:27.2]} 10... Nxc5 {[%clk 0:04:38.5]} 11. Bb5+
{[%clk 0:04:26.2]} 11... Nd7 {[%clk 0:04:31.2]} 12. e5 {[%clk 0:04:04.7]} 12...
Bxf3 {[%clk 0:04:11.2]} 13. gxf3 {[%clk 0:04:03.1]} 13... Rc5 {[%clk 0:04:01]}
14. Rhe1 {[%clk 0:03:55.1]} 14... Nh6 {[%clk 0:03:51.4]} 15. b4 {[%clk
0:03:12.6]} 15... Rxc3 {[%clk 0:03:41]} 16. Qxc3 {[%clk 0:03:10.8]} 16... Nf5
{[%clk 0:03:35.8]} 17. Qc6 {[%clk 0:03:01.2]} 17... O-O {[%clk 0:03:16.9]} 18.
Qxd7 {[%clk 0:02:59.4]} 18... Qa8 {[%clk 0:03:13.1]} 19. exd6 {[%clk 0:02:57.4]}
19... Qxf3 {[%clk 0:03:11.3]} 20. Bd2 {[%clk 0:02:36.4]} 20... exd6 {[%clk
0:03:05.9]} 21. Re8 {[%clk 0:02:30.1]} 21... Qa3+ {[%clk 0:03:03.2]} 0-1

[Event "Live Chess"]
[Site "Chess.com"]
[Date "2023.05.21"]
[Round "-"]
[White "JanMur7"]
[Black "Davidagye"]
[Result "1-0"]
[WhiteElo "1957"]
[BlackElo "1666"]
[TimeControl "300"]
[EndTime "2:38:28 PDT"]
[Termination "JanMur7 won by resignation"]

1. e4 {[%clk 0:04:58.3]} 1... Nf6 {[%clk 0:04:59.5]} 2. Nc3 {[%clk 0:04:57.2]}
2... d6 {[%clk 0:04:58.3]} 3. d4 {[%clk 0:04:55.5]} 3... Nbd7 {[%clk 0:04:57.6]}
4. f4 {[%clk 0:04:54.5]} 4... e5 {[%clk 0:04:54.6]} 5. Nf3 {[%clk 0:04:53.5]}
5... exd4 {[%clk 0:04:51.6]} 6. Nxd4 {[%clk 0:04:53.4]} 6... Be7 {[%clk
0:04:49.8]} 7. Bc4 {[%clk 0:04:50.1]} 7... O-O {[%clk 0:04:48.6]} 8. O-O {[%clk
0:04:47.8]} 8... c6 {[%clk 0:04:47.9]} 9. Nf5 {[%clk 0:04:44.8]} 9... Nb6 {[%clk
0:04:44.1]} 10. Nxe7+ {[%clk 0:04:38.6]} 10... Qxe7 {[%clk 0:04:42.5]} 11. Bd3
{[%clk 0:04:38.5]} 11... Re8 {[%clk 0:04:38.5]} 12. Be3 {[%clk 0:04:32.1]} 12...
Ng4 {[%clk 0:04:34.7]} 13. Qf3 {[%clk 0:04:16.2]} 13... Nxe3 {[%clk 0:04:32.3]}
14. Qxe3 {[%clk 0:04:14.8]} 14... f5 {[%clk 0:04:31.7]} 15. Rae1 {[%clk
0:04:09.3]} 15... fxe4 {[%clk 0:04:29.1]} 16. Nxe4 {[%clk 0:04:03.2]} 16... d5
{[%clk 0:04:28.1]} 17. Nf6+ {[%clk 0:03:59.1]} 17... gxf6 {[%clk 0:04:10.3]} 18.
Qxe7 {[%clk 0:03:56.1]} 18... Rxe7 {[%clk 0:04:09.8]} 19. Rxe7 {[%clk
0:03:55.5]} 19... Bd7 {[%clk 0:04:08.9]} 20. Rf3 {[%clk 0:03:44]} 20... Re8
{[%clk 0:04:01.7]} 21. Rg3+ {[%clk 0:03:37.2]} 21... Kf8 {[%clk 0:03:58.1]} 22.
Rxe8+ {[%clk 0:03:35.2]} 22... Bxe8 {[%clk 0:03:55.3]} 23. Bxh7 {[%clk 0:03:33]}
23... Bf7 {[%clk 0:03:54.6]} 24. Bg6 {[%clk 0:03:26.9]} 24... d4 {[%clk
0:03:53.8]} 25. Bxf7 {[%clk 0:03:24.8]} 25... Kxf7 {[%clk 0:03:51.8]} 26. Rd3
{[%clk 0:03:23.5]} 26... c5 {[%clk 0:03:50.6]} 27. b3 {[%clk 0:03:21.5]} 27...
Ke6 {[%clk 0:03:48.3]} 28. Kf2 {[%clk 0:03:18.2]} 28... Kd5 {[%clk 0:03:45.1]}
29. Kf3 {[%clk 0:03:10.9]} 29... a5 {[%clk 0:03:42.2]} 30. h4 {[%clk 0:03:07.2]}
30... a4 {[%clk 0:03:39.6]} 31. h5 {[%clk 0:03:03.2]} 31... Nd7 {[%clk
0:03:37.1]} 32. h6 {[%clk 0:03:01.1]} 32... Nf8 {[%clk 0:03:36.2]} 33. bxa4
{[%clk 0:02:50.3]} 33... c4 {[%clk 0:03:33.6]} 34. Rd1 {[%clk 0:02:49.6]} 34...
d3 {[%clk 0:03:31.1]} 35. cxd3 {[%clk 0:02:48.4]} 35... c3 {[%clk 0:03:28.4]}
36. Ke3 {[%clk 0:02:38.8]} 36... f5 {[%clk 0:03:24.2]} 37. Rc1 {[%clk
0:02:37.8]} 1-0

[Event "Live Chess"]
[Site "Chess.com"]
[Date "2023.05.21"]
[Round "-"]
[White "domrobson"]
[Black "SupremeTactician"]
[Result "0-1"]
[WhiteElo "1702"]
[BlackElo "2262"]
[TimeControl "300"]
[EndTime "2:38:28 PDT"]
[Termination "SupremeTactician won by resignation"]

1. d4 {[%clk 0:04:59.3]} 1... Nf6 {[%clk 0:04:59]} 2. c4 {[%clk 0:04:57.5]} 2...
e6 {[%clk 0:04:58.5]} 3. Nf3 {[%clk 0:04:56.2]} 3... b6 {[%clk 0:04:57.9]} 4.
Nc3 {[%clk 0:04:55.4]} 4... Bb7 {[%clk 0:04:57.2]} 5. Bg5 {[%clk 0:04:54.3]}
5... Bb4 {[%clk 0:04:56.4]} 6. e3 {[%clk 0:04:53.5]} 6... O-O {[%clk 0:04:55.5]}
7. Bd3 {[%clk 0:04:52.7]} 7... h6 {[%clk 0:04:55]} 8. Bxf6 {[%clk 0:04:51.4]}
8... Qxf6 {[%clk 0:04:54.9]} 9. O-O {[%clk 0:04:50.6]} 9... Bxf3 {[%clk
0:04:53]} 10. Qxf3 {[%clk 0:04:49.7]} 10... Qxf3 {[%clk 0:04:52.2]} 11. gxf3
{[%clk 0:04:48.8]} 11... Bxc3 {[%clk 0:04:52.1]} 12. bxc3 {[%clk 0:04:47.7]}
12... c6 {[%clk 0:04:52]} 13. e4 {[%clk 0:04:46.4]} 13... d6 {[%clk 0:04:49]}
14. d5 {[%clk 0:04:45.6]} 14... cxd5 {[%clk 0:04:47.6]} 15. cxd5 {[%clk
0:04:44.1]} 15... exd5 {[%clk 0:04:47.3]} 16. exd5 {[%clk 0:04:43.3]} 16... Nd7
{[%clk 0:04:47.1]} 17. c4 {[%clk 0:04:41.2]} 17... Ne5 {[%clk 0:04:46.4]} 18.
Be2 {[%clk 0:04:38.2]} 18... Rac8 {[%clk 0:04:44.9]} 19. Rfc1 {[%clk 0:04:36.2]}
19... Rfe8 {[%clk 0:04:44]} 20. Kf1 {[%clk 0:04:34.7]} 20... Ng6 {[%clk
0:04:40.7]} 21. Rc3 {[%clk 0:04:32]} 21... Nf4 {[%clk 0:04:39.8]} 22. Re1 {[%clk
0:04:29]} 22... Re5 {[%clk 0:04:38.8]} 23. Bd1 {[%clk 0:04:23]} 23... Rxe1+
{[%clk 0:04:33.4]} 24. Kxe1 {[%clk 0:04:22]} 24... b5 {[%clk 0:04:29.5]} 25. Bb3
{[%clk 0:04:17.2]} 25... Nxd5 {[%clk 0:04:22.2]} 26. Rd3 {[%clk 0:04:12.5]}
26... bxc4 {[%clk 0:04:21.7]} 27. Bxc4 {[%clk 0:04:10.1]} 27... Nb4 {[%clk
0:04:16]} 28. Rd4 {[%clk 0:04:06.5]} 28... Nc2+ {[%clk 0:04:14.5]} 0-1

[Event "Live Chess"]
[Site "Chess.com"]
[Date "2023.05.21"]
[Round "-"]
[White "NatashaRegan"]
[Black "JoshMcK"]
[Result "1-0"]
[WhiteElo "1743"]
[BlackElo "1519"]
[TimeControl "300"]
[EndTime "2:38:39 PDT"]
[Termination "NatashaRegan won by resignation"]

1. e4 {[%clk 0:04:56.5]} 1... c6 {[%clk 0:04:58.8]} 2. f4 {[%clk 0:04:53.9]}
2... d5 {[%clk 0:04:56.3]} 3. e5 {[%clk 0:04:48.6]} 3... Bf5 {[%clk 0:04:44.7]}
4. Nf3 {[%clk 0:04:45.7]} 4... e6 {[%clk 0:04:42.7]} 5. d4 {[%clk 0:04:39.7]}
5... c5 {[%clk 0:04:33.9]} 6. Be3 {[%clk 0:04:35.1]} 6... cxd4 {[%clk
0:04:30.2]} 7. Nxd4 {[%clk 0:04:33.6]} 7... Be4 {[%clk 0:04:26.1]} 8. Nd2 {[%clk
0:04:26.8]} 8... Bg6 {[%clk 0:04:23.4]} 9. c4 {[%clk 0:04:04.8]} 9... dxc4
{[%clk 0:04:15]} 10. Bxc4 {[%clk 0:03:58]} 10... Bc5 {[%clk 0:04:08.3]} 11. N2b3
{[%clk 0:03:51.7]} 11... Bxd4 {[%clk 0:04:06.5]} 12. Nxd4 {[%clk 0:03:49.9]}
12... Ne7 {[%clk 0:04:03.2]} 13. O-O {[%clk 0:03:46.6]} 13... O-O {[%clk
0:04:00.4]} 14. Qf3 {[%clk 0:03:36.2]} 14... Nbc6 {[%clk 0:03:52.5]} 15. Rad1
{[%clk 0:03:24.5]} 15... Qc7 {[%clk 0:03:41]} 16. Nb5 {[%clk 0:03:14.3]} 16...
Qc8 {[%clk 0:03:29.2]} 17. Nd6 {[%clk 0:03:09.9]} 17... Qc7 {[%clk 0:03:27.2]}
18. Rc1 {[%clk 0:03:04.8]} 18... Nf5 {[%clk 0:03:20.6]} 19. Nxf5 {[%clk
0:02:51.4]} 19... Bxf5 {[%clk 0:03:18.7]} 20. Bb5 {[%clk 0:02:47.2]} 20... Rac8
{[%clk 0:03:08.5]} 21. Bc5 {[%clk 0:02:41.5]} 21... Rfd8 {[%clk 0:02:58.7]} 22.
a4 {[%clk 0:02:35.1]} 22... a6 {[%clk 0:02:39.8]} 23. Be2 {[%clk 0:02:29.1]}
23... Qa5 {[%clk 0:02:28.9]} 24. b3 {[%clk 0:02:18.1]} 24... Nd4 {[%clk
0:02:21.6]} 25. Bxd4 {[%clk 0:02:00]} 25... Rxc1 {[%clk 0:02:19.3]} 26. Rxc1
{[%clk 0:01:55]} 26... Rxd4 {[%clk 0:02:17.4]} 27. Qxb7 {[%clk 0:01:49.3]} 27...
Rd8 {[%clk 0:02:07.9]} 28. Bxa6 {[%clk 0:01:38.2]} 28... Qd2 {[%clk 0:01:57]}
29. Qc7 {[%clk 0:01:29.9]} 29... Be4 {[%clk 0:01:38.1]} 30. Bf1 {[%clk
0:01:25.2]} 30... Qd4+ {[%clk 0:01:09]} 31. Kh1 {[%clk 0:01:21.9]} 31... g6
{[%clk 0:01:01.2]} 32. a5 {[%clk 0:01:17.9]} 32... Bd3 {[%clk 0:00:55.4]} 33.
Rd1 {[%clk 0:01:09.5]} 33... Qf2 {[%clk 0:00:39]} 34. Qxd8+ {[%clk 0:01:04]} 1-0